bitfinex/quotes_BTCUSD_20230901
["timestamp","ask_amount","ask_price","bid_price","bid_amount"]
[1693532515200,0.046616,26010.0,26009.0,2.75954294]
[1693532515539,0.046616,26010.0,26009.0,2.75984294]
[1693532515700,0.046616,26010.0,26009.0,2.75990294]
[1693532515901,0.046616,26010.0,26009.0,2.75996294]
[1693532516266,0.046616,26010.0,26009.0,2.76014294]
[1693532516466,0.046616,26010.0,26009.0,2.76020294]
[1693532516680,0.046616,26010.0,26009.0,2.75906294]
[1693532516867,0.046616,26010.0,26009.0,2.75924294]
[1693532517021,0.046616,26010.0,26009.0,2.75828294]
[1693532517199,0.046616,26010.0,26009.0,2.75834294]
[1693532517603,0.046616,26010.0,26009.0,2.75888294]
[1693532517806,0.046616,26010.0,26009.0,2.75894294]
[1693532518011,0.046616,26010.0,26009.0,2.75870294]
[1693532518256,0.41622218,26010.0,26009.0,1.285346]
[1693532518470,0.76376773,26010.0,26009.0,0.05]
[1693532518885,0.64599013,26010.0,26009.0,0.05]
[1693532520194,1.22269113,26010.0,26009.0,0.05]
[1693532520443,1.93844821,26010.0,26009.0,0.05]
[1693532522277,1.98443237,26010.0,26009.0,0.05]
[1693532524653,1.70679452,26010.0,26009.0,0.05]
[1693532524849,1.89032992,26010.0,26009.0,0.05]
[1693532525224,1.70679452,26010.0,26009.0,0.05]
[1693532525608,1.92534742,26010.0,26009.0,0.05]
[1693532525803,2.10885464,26010.0,26009.0,0.05]
[1693532526547,1.92534742,26010.0,26009.0,0.05]
[1693532526884,2.10882898,26010.0,26009.0,0.05]
[1693532527352,1.87890816,26010.0,26009.0,0.05]
[1693532528948,1.62205246,26010.0,26009.0,0.05]
[1693532530939,1.75961268,26010.0,26009.0,0.05]
[1693532532778,1.62205246,26010.0,26009.0,0.05]
[1693532533013,1.75959174,26010.0,26009.0,0.05]
[1693532534290,2.2368459,26010.0,26009.0,0.05]
[1693532535599,2.12661239,26010.0,26009.0,0.05]
[1693532536085,1.89669157,26010.0,26009.0,0.05]
[1693532536913,1.64004623,26010.0,26009.0,0.05]
[1693532537238,1.77754176,26010.0,26009.0,0.05]
[1693532537370,1.20084076,26010.0,26009.0,0.05]
[1693532537993,1.77754176,26010.0,26009.0,0.05]
[1693532541027,0.29577075,26010.0,26009.0,1.203446]
[1693532542311,0.15827522,26010.0,26009.0,1.780169]
[1693532542668,0.15827522,26010.0,26009.0,1.898369]
[1693532543669,0.15827522,26010.0,26009.0,2.28545578]
[1693532543845,0.066616,26010.0,26009.0,2.28545578]
[1693532545073,0.066616,26010.0,26009.0,2.36027578]
[1693532545437,0.066616,26010.0,26009.0,2.36195578]
[1693532545644,0.066616,26010.0,26009.0,2.36153578]
[1693532545794,0.066616,26010.0,26009.0,2.36099578]
[1693532545978,0.066616,26010.0,26009.0,2.35769578]
[1693532546178,0.066616,26010.0,26009.0,2.35073578]
[1693532546569,0.066616,26010.0,26009.0,2.28545578]
[1693532546772,0.066616,26010.0,26009.0,2.35085578]
[1693532546972,0.066616,26010.0,26009.0,2.35445578]
[1693532547175,0.066616,26010.0,26009.0,2.35799578]
[1693532547376,0.066616,26010.0,26009.0,2.35757578]
[1693532547550,0.066616,26010.0,26009.0,2.35895578]
[1693532547711,0.066616,26010.0,26009.0,2.35841578]
[1693532547914,0.066616,26010.0,26009.0,2.35547578]
[1693532548152,0.066616,26010.0,26009.0,2.35433578]
[1693532548352,0.066616,26010.0,26009.0,2.36255578]
[1693532548555,0.066616,26010.0,26009.0,2.39713578]
[1693532548763,0.046616,26010.0,26009.0,2.39491578]
[1693532548970,0.046616,26010.0,26009.0,2.40205578]
[1693532549199,0.046616,26010.0,26009.0,2.40787578]
[1693532549527,0.046616,26010.0,26009.0,2.41837578]
[1693532549735,0.046616,26010.0,26009.0,2.41537578]
[1693532549942,0.046616,26010.0,26009.0,2.41471578]
[1693532550144,0.046616,26010.0,26009.0,2.75945578]
[1693532550356,0.046616,26010.0,26009.0,2.75927578]
[1693532550566,0.046616,26010.0,26009.0,2.75327578]
[1693532550773,0.046616,26010.0,26009.0,2.75051578]
[1693532550974,0.046616,26010.0,26009.0,2.75021578]
[1693532551176,0.046616,26010.0,26009.0,2.74967578]
[1693532551328,0.046616,26010.0,26009.0,2.74757578]
[1693532551533,0.046616,26010.0,26009.0,2.74991578]
[1693532551863,0.046616,26010.0,26009.0,2.74775578]
[1693532552774,0.046616,26010.0,26009.0,2.74763578]
[1693532553100,0.046616,26010.0,26009.0,2.74937578]
[1693532553308,0.046616,26010.0,26009.0,2.74853578]
[1693532553460,0.046616,26010.0,26009.0,2.74943578]
[1693532553807,0.046616,26010.0,26009.0,2.74937578]
[1693532554016,0.046616,26010.0,26009.0,2.74943578]
[1693532554219,0.046616,26010.0,26009.0,2.74919578]
[1693532554581,0.046616,26010.0,26009.0,2.74829578]
[1693532554790,0.046616,26010.0,26009.0,2.74799578]
[1693532555001,0.046616,26010.0,26009.0,2.74823578]
[1693532555169,0.046616,26010.0,26009.0,2.74943578]
[1693532555366,0.046616,26010.0,26009.0,2.74955578]
[1693532555687,0.046616,26010.0,26009.0,2.74967578]
[1693532556069,0.046616,26010.0,26009.0,2.74961578]
[1693532556633,0.046616,26010.0,26009.0,2.74949578]
[1693532556768,0.046616,26010.0,26009.0,2.74919578]
[1693532556979,0.046616,26010.0,26009.0,2.74877578]
[1693532557356,0.046616,26010.0,26009.0,2.74913578]
[1693532557506,0.046616,26010.0,26009.0,2.74553578]
[1693532557709,0.046616,26010.0,26009.0,2.74547578]
[1693532558482,0.046616,26010.0,26009.0,2.74583578]
[1693532558621,0.046616,26010.0,26009.0,2.74691578]
[1693532559268,0.046616,26010.0,26009.0,2.74709578]
[1693532559500,0.046616,26010.0,26009.0,2.74715578]
[1693532559674,0.046616,26010.0,26009.0,2.74775578]
[1693532559883,0.046616,26010.0,26009.0,2.74715578]
[1693532560630,0.046616,26010.0,26009.0,2.74619578]
[1693532560952,0.046616,26010.0,26009.0,2.74607578]
[1693532561208,0.046616,26010.0,26009.0,2.74601578]
[1693532562116,0.046616,26010.0,26009.0,2.74607578]
[1693532562353,0.046616,26010.0,26009.0,2.74571578]
[1693532562565,0.046616,26010.0,26009.0,2.74565578]
[1693532562901,0.046616,26010.0,26009.0,2.74577578]
[1693532563104,0.046616,26010.0,26009.0,2.74781578]
[1693532563542,0.046616,26010.0,26009.0,2.74775578]
[1693532563983,0.046616,26010.0,26009.0,2.74985578]
[1693532564182,0.046616,26010.0,26009.0,2.75015578]
[1693532564486,0.046616,26010.0,26009.0,2.75003578]
[1693532564698,0.046616,26010.0,26009.0,2.75195578]
[1693532564895,0.046616,26010.0,26009.0,2.75057578]
[1693532565094,0.046616,26010.0,26009.0,2.75405578]
[1693532565275,0.046616,26010.0,26009.0,2.75663578]
[1693532565471,0.046616,26010.0,26009.0,2.75429578]
[1693532565754,0.046616,26010.0,26009.0,2.75369578]
[1693532565962,0.046616,26010.0,26009.0,2.75081578]
[1693532566083,0.046616,26010.0,26009.0,2.74745578]
[1693532566287,0.046616,26010.0,26009.0,2.74751578]
[1693532566484,0.046616,26010.0,26009.0,2.74715578]
[1693532566684,0.046616,26010.0,26009.0,2.74709578]
[1693532566885,0.046616,26010.0,26009.0,2.74661578]
[1693532567113,0.046616,26010.0,26009.0,2.74739578]
[1693532567477,0.046616,26010.0,26009.0,2.74751578]
[1693532567719,0.046616,26010.0,26009.0,2.74055578]
[1693532567920,0.046616,26010.0,26009.0,2.72639578]
[1693532568122,0.046616,26010.0,26009.0,2.72483578]
[1693532568327,0.046616,26010.0,26009.0,2.72225578]
[1693532568596,0.046616,26010.0,26009.0,2.72177578]
[1693532568838,0.046616,26010.0,26009.0,2.72207578]
[1693532569095,0.046616,26010.0,26009.0,2.72273578]
[1693532569364,0.046616,26010.0,26009.0,2.72291578]
[1693532569601,0.046616,26010.0,26009.0,2.72615578]
[1693532569812,0.046616,26010.0,26009.0,2.72471578]
[1693532570052,0.046616,26010.0,26009.0,2.72483578]
[1693532570261,0.046616,26010.0,26009.0,2.72525578]
[1693532570460,0.046616,26010.0,26009.0,2.72663578]
[1693532570618,0.046616,26010.0,26009.0,2.72729578]
[1693532570961,0.046616,26010.0,26009.0,2.72741578]
[1693532571121,0.046616,26010.0,26009.0,2.72801578]
[1693532571327,0.046616,26010.0,26009.0,2.72813578]
[1693532571530,0.046616,26010.0,26009.0,2.72801578]
[1693532571703,0.046616,26010.0,26009.0,2.72627578]
[1693532571907,0.046616,26010.0,26009.0,2.72639578]
[1693532572124,0.046616,26010.0,26009.0,2.72489578]
[1693532572334,0.046616,26010.0,26009.0,2.72483578]
[1693532572558,0.046616,26010.0,26009.0,2.72489578]
[1693532572757,0.046616,26010.0,26009.0,2.72495578]
[1693532572961,0.046616,26010.0,26009.0,2.73017578]
[1693532573158,0.046616,26010.0,26009.0,2.72915578]
[1693532573382,0.046616,26010.0,26009.0,2.72909578]
[1693532573567,0.046616,26010.0,26009.0,2.72759578]
[1693532573769,0.046616,26010.0,26009.0,2.72615578]
[1693532573969,0.046616,26010.0,26009.0,2.72735578]
[1693532574170,0.046616,26010.0,26009.0,2.72693578]
[1693532574408,0.046616,26010.0,26009.0,2.72771578]
[1693532574580,0.046616,26010.0,26009.0,2.72975578]
[1693532574810,0.046616,26010.0,26009.0,2.73083578]
[1693532574968,0.046616,26010.0,26009.0,2.72963578]
[1693532575373,0.046616,26010.0,26009.0,2.72993578]
[1693532575605,0.046616,26010.0,26009.0,2.72969578]
[1693532575807,0.046616,26010.0,26009.0,2.72999578]
[1693532576063,0.046616,26010.0,26009.0,2.72891578]
[1693532576265,0.046616,26010.0,26009.0,2.72825578]
[1693532576465,0.046616,26010.0,26009.0,2.72819578]
[1693532576723,0.046616,26010.0,26009.0,2.72849578]
[1693532576923,0.046616,26010.0,26009.0,2.73005578]
[1693532577124,0.046616,26010.0,26009.0,2.72861578]
[1693532577327,0.046616,26010.0,26009.0,2.72999578]
[1693532577528,0.046616,26010.0,26009.0,2.72939578]
[1693532577708,0.046616,26010.0,26009.0,2.72969578]
[1693532577910,0.046616,26010.0,26009.0,2.73083578]
[1693532578385,0.046616,26010.0,26009.0,2.72975578]
[1693532578578,0.046616,26010.0,26009.0,2.73017578]
[1693532578826,0.046616,26010.0,26009.0,2.73023578]
[1693532579026,0.046616,26010.0,26009.0,2.73281578]
[1693532579312,0.046616,26010.0,26009.0,2.73329578]
[1693532579513,0.046616,26010.0,26009.0,2.73347578]
[1693532579749,0.046616,26010.0,26009.0,2.73353578]
[1693532580463,0.046616,26010.0,26009.0,2.73785578]
[1693532580661,0.046616,26010.0,26009.0,2.73905578]
[1693532581065,0.046616,26010.0,26009.0,2.73869578]
[1693532581371,0.046616,26010.0,26009.0,2.73749578]
[1693532581566,0.046616,26010.0,26009.0,2.73797578]
[1693532581998,0.046616,26010.0,26009.0,2.73743578]
[1693532582218,0.046616,26010.0,26009.0,2.74121578]
[1693532582537,0.046616,26010.0,26009.0,2.74115578]
[1693532582755,0.046616,26010.0,26009.0,2.74097578]
[1693532582962,0.046616,26010.0,26009.0,2.73521578]
[1693532583158,0.046616,26010.0,26009.0,2.73341578]
[1693532583362,0.046616,26010.0,26009.0,2.73371578]
[1693532583581,0.046616,26010.0,26009.0,2.73005578]
[1693532583779,0.046616,26010.0,26009.0,2.72999578]
[1693532584003,0.046616,26010.0,26009.0,2.73143578]
[1693532584459,0.046616,26010.0,26009.0,2.73149578]
[1693532584658,0.046616,26010.0,26009.0,2.73011578]
[1693532584872,0.046616,26010.0,26009.0,2.72975578]
[1693532585097,0.046616,26010.0,26009.0,2.72927578]
[1693532585300,0.046616,26010.0,26009.0,2.72987578]
[1693532585547,0.046616,26010.0,26009.0,2.72975578]
[1693532585742,0.046616,26010.0,26009.0,2.73011578]
[1693532585976,0.046616,26010.0,26009.0,2.73017578]
[1693532586152,0.046616,26010.0,26009.0,2.73023578]
[1693532586359,0.046616,26010.0,26009.0,2.73017578]
[1693532586582,0.046616,26010.0,26009.0,2.73029578]
[1693532586909,0.046616,26010.0,26009.0,2.73047578]
[1693532587084,0.046616,26010.0,26009.0,2.73053578]
[1693532587538,0.046616,26010.0,26009.0,2.73047578]
[1693532587963,0.046616,26010.0,26009.0,2.73317578]
[1693532588193,0.046616,26010.0,26009.0,2.73329578]
[1693532588369,0.046616,26010.0,26009.0,2.73239578]
[1693532588548,0.046616,26010.0,26009.0,2.73245578]
[1693532588754,0.046616,26010.0,26009.0,2.72915578]
[1693532589127,0.13827522,26010.0,26009.0,2.72927578]
[1693532589307,0.046616,26010.0,26009.0,2.72927578]
[1693532589511,0.046616,26010.0,26009.0,2.72933578]
[1693532589760,0.046616,26010.0,26009.0,2.76317578]
[1693532589985,0.046616,26010.0,26009.0,2.76533578]
[1693532590164,0.046616,26010.0,26009.0,2.77157578]
[1693532590504,0.046616,26010.0,26009.0,2.76647578]
[1693532590710,0.046616,26010.0,26009.0,2.76629578]
[1693532590879,0.046616,26010.0,26009.0,2.76569578]
[1693532591091,0.046616,26010.0,26009.0,2.76749578]
[1693532591265,0.046616,26010.0,26009.0,2.76659578]
[1693532591463,0.046616,26010.0,26009.0,2.76695578]
[1693532591661,0.046616,26010.0,26009.0,2.76353578]
[1693532591867,0.046616,26010.0,26009.0,2.76041578]
[1693532592201,0.046616,26010.0,26009.0,2.75987578]
[1693532592429,0.046616,26010.0,26009.0,2.76161578]
[1693532592633,0.046616,26010.0,26009.0,2.76047578]
[1693532592832,0.046616,26010.0,26009.0,2.75891578]
[1693532593030,0.046616,26010.0,26009.0,2.75867578]
[1693532593167,0.046616,26010.0,26009.0,2.75837578]
[1693532593369,0.046616,26010.0,26009.0,2.75657578]
[1693532593574,0.046616,26010.0,26009.0,2.75639578]
[1693532593778,0.046616,26010.0,26009.0,2.75621578]
[1693532593973,0.046616,26010.0,26009.0,2.75315578]
[1693532594175,0.046616,26010.0,26009.0,2.75381578]
[1693532594443,0.046616,26010.0,26009.0,2.74313578]
[1693532594645,0.046616,26010.0,26009.0,2.74439578]
[1693532594867,0.046616,26010.0,26009.0,2.74343578]
[1693532595496,0.046616,26010.0,26009.0,2.74349578]
[1693532595671,0.046616,26010.0,26009.0,2.74403578]
[1693532596192,0.046616,26010.0,26009.0,2.74415578]
[1693532596392,0.046616,26010.0,26009.0,2.74421578]
[1693532596600,0.046616,26010.0,26009.0,2.74319578]
[1693532596810,0.046616,26010.0,26009.0,2.74325578]
[1693532597014,0.046616,26010.0,26009.0,2.74529578]
[1693532597171,0.046616,26010.0,26009.0,2.74481578]
[1693532597377,0.046616,26010.0,26009.0,2.74541578]
[1693532597738,0.046616,26010.0,26009.0,2.74583578]
[1693532597858,0.046616,26010.0,26009.0,2.74577578]
[1693532598057,0.046616,26010.0,26009.0,2.74595578]
[1693532598418,0.046616,26010.0,26009.0,2.74613578]
[1693532598646,0.046616,26010.0,26009.0,2.74595578]
[1693532598849,0.046616,26010.0,26009.0,2.74589578]
[1693532599050,0.046616,26010.0,26009.0,2.75819578]
[1693532599255,0.046616,26010.0,26009.0,2.75345578]
[1693532599482,0.046616,26010.0,26009.0,2.75465578]
[1693532599656,0.046616,26010.0,26009.0,2.75495578]
[1693532599860,0.046616,26010.0,26009.0,2.75681578]
[1693532600071,0.046616,26010.0,26009.0,2.75669578]
[1693532600248,0.046616,26010.0,26009.0,2.75687578]
[1693532600452,0.046616,26010.0,26009.0,2.75585578]
[1693532600647,0.046616,26010.0,26009.0,2.75567578]
[1693532600949,0.046616,26010.0,26009.0,2.74757578]
[1693532601183,0.046616,26010.0,26009.0,2.78779578]
[1693532601360,0.046616,26010.0,26009.0,2.78953578]
[1693532601560,0.046616,26010.0,26009.0,2.78941578]
[1693532601766,0.046616,26010.0,26009.0,2.78917578]
[1693532601969,0.046616,26010.0,26009.0,2.78851578]
[1693532602171,0.046616,26010.0,26009.0,2.78833578]
[1693532602375,0.046616,26010.0,26009.0,2.78827578]
[1693532602576,0.046616,26010.0,26009.0,2.78809578]
[1693532602751,0.046616,26010.0,26009.0,2.78791578]
[1693532602948,0.046616,26010.0,26009.0,2.78761578]
[1693532603151,0.046616,26010.0,26009.0,2.78737578]
[1693532603335,0.046616,26010.0,26009.0,2.78731578]
[1693532603536,0.046616,26010.0,26009.0,2.78689578]
[1693532603954,0.046616,26010.0,26009.0,2.78545578]
[1693532604159,0.046616,26010.0,26009.0,2.78527578]
[1693532604439,0.046616,26010.0,26009.0,2.78521578]
[1693532604648,0.046616,26010.0,26009.0,2.78485578]
[1693532604888,0.046616,26010.0,26009.0,2.78473578]
[1693532605098,0.046616,26010.0,26009.0,2.78455578]
[1693532605301,0.046616,26010.0,26009.0,2.78443578]
[1693532605450,0.046616,26010.0,26009.0,2.78485578]
[1693532605646,0.046616,26010.0,26009.0,2.78467578]
[1693532606010,0.046616,26010.0,26009.0,2.78437578]
[1693532606187,0.046616,26010.0,26009.0,2.78419578]
[1693532606384,0.046616,26010.0,26009.0,2.78341578]
[1693532606567,0.046616,26010.0,26009.0,2.78209578]
[1693532606763,0.046616,26010.0,26009.0,2.77921578]
[1693532606971,0.046616,26010.0,26009.0,2.78305578]
[1693532607164,0.046616,26010.0,26009.0,2.78293578]
[1693532607372,0.046616,26010.0,26009.0,2.78179578]
[1693532607571,0.046616,26010.0,26009.0,2.78227578]
[1693532607774,0.046616,26010.0,26009.0,2.78239578]
[1693532607993,0.046616,26010.0,26009.0,2.78245578]
[1693532608189,0.046616,26010.0,26009.0,2.78239578]
[1693532608397,0.046616,26010.0,26009.0,2.78245578]
[1693532608572,0.046616,26010.0,26009.0,2.78149578]
[1693532608847,0.046616,26010.0,26009.0,2.78155578]
[1693532609046,0.046616,26010.0,26009.0,2.78143578]
[1693532609221,0.046616,26010.0,26009.0,2.78131578]
[1693532609399,0.046616,26010.0,26009.0,2.78161578]
[1693532609765,0.046616,26010.0,26009.0,2.78125578]
[1693532609888,0.046616,26010.0,26009.0,2.78203578]
[1693532610087,0.046616,26010.0,26009.0,2.78191578]
[1693532610296,0.046616,26010.0,26009.0,2.78185578]
[1693532610499,0.046616,26010.0,26009.0,2.76787578]
[1693532610695,0.046616,26010.0,26009.0,2.76217578]
[1693532610944,0.046616,26010.0,26009.0,2.76229578]
[1693532611143,0.046616,26010.0,26009.0,2.76169578]
[1693532611405,0.046616,26010.0,26009.0,2.76181578]
[1693532611610,0.046616,26010.0,26009.0,2.76175578]
[1693532612055,0.046616,26010.0,26009.0,2.76181578]
[1693532612434,0.046616,26010.0,26009.0,2.76223578]
[1693532612641,0.046616,26010.0,26009.0,2.76235578]
[1693532612851,0.046616,26010.0,26009.0,2.76349578]
[1693532613221,0.046616,26010.0,26009.0,2.76331578]
[1693532613418,0.046616,26010.0,26009.0,2.76355578]
[1693532613623,0.046616,26010.0,26009.0,2.76337578]
[1693532613826,0.046616,26010.0,26009.0,2.76343578]
[1693532614217,0.046616,26010.0,26009.0,2.76319578]
[1693532614540,0.046616,26010.0,26009.0,2.76163578]
[1693532614892,0.046616,26010.0,26009.0,2.76271578]
[1693532615274,0.046616,26010.0,26009.0,2.76277578]
[1693532615480,0.046616,26010.0,26009.0,2.76283578]
[1693532616011,0.046616,26010.0,26009.0,2.76259578]
[1693532616215,0.046616,26010.0,26009.0,2.76271578]
[1693532616454,0.046616,26010.0,26009.0,2.76235578]
[1693532616625,0.046616,26010.0,26009.0,2.76229578]
[1693532616829,0.046616,26010.0,26009.0,2.75389578]
[1693532616974,0.046616,26010.0,26009.0,2.75503578]
[1693532617185,0.046616,26010.0,26009.0,2.75587578]
[1693532617383,0.046616,26010.0,26009.0,2.75341578]
[1693532617607,0.046616,26010.0,26009.0,2.74855578]
[1693532617849,0.046616,26010.0,26009.0,2.74663578]
[1693532618063,0.046616,26010.0,26009.0,2.74765578]
[1693532618393,0.046616,26010.0,26009.0,2.74813578]
[1693532618589,0.046616,26010.0,26009.0,2.74699578]
[1693532618793,0.046616,26010.0,26009.0,2.74765578]
[1693532619173,0.046616,26010.0,26009.0,2.74783578]
[1693532619324,0.046616,26010.0,26009.0,2.74741578]
[1693532619500,0.046616,26010.0,26009.0,2.74651578]
[1693532619704,0.046616,26010.0,26009.0,2.75101578]
[1693532619928,0.046616,26010.0,26009.0,2.75071578]
[1693532620379,0.046616,26010.0,26009.0,2.75041578]
[1693532620697,0.046616,26010.0,26009.0,2.74585578]
[1693532620834,0.046616,26010.0,26009.0,2.74483578]
[1693532621043,0.046616,26010.0,26009.0,2.75251578]
[1693532621284,0.046616,26010.0,26009.0,2.75257578]
[1693532621745,0.046616,26010.0,26009.0,2.74867578]
[1693532622082,0.046616,26010.0,26009.0,2.74855578]
[1693532622379,0.046616,26010.0,26009.0,2.74891578]
[1693532622584,0.046616,26010.0,26009.0,2.74867578]
[1693532622832,0.046616,26010.0,26009.0,2.74873578]
[1693532622950,0.046616,26010.0,26009.0,2.74867578]
[1693532623152,0.046616,26010.0,26009.0,2.74543578]
[1693532623463,0.046616,26010.0,26009.0,2.74681578]
[1693532623806,0.046616,26010.0,26009.0,2.74531578]
[1693532624099,0.046616,26010.0,26009.0,2.75023578]
[1693532624331,0.046616,26010.0,26009.0,2.74543578]
[1693532624504,0.046616,26010.0,26009.0,2.74435578]
[1693532624706,0.046616,26010.0,26009.0,2.74441578]
[1693532624911,0.046616,26010.0,26009.0,2.74453578]
[1693532625206,0.046616,26010.0,26009.0,2.74423578]
[1693532625348,0.046616,26010.0,26009.0,2.74435578]
[1693532625543,0.046616,26010.0,26009.0,2.74513578]
[1693532625770,0.046616,26010.0,26009.0,2.74465578]
[1693532625973,0.046616,26010.0,26009.0,2.74537578]
[1693532626184,0.046616,26010.0,26009.0,2.74489578]
[1693532626400,0.046616,26010.0,26009.0,2.74555578]
[1693532626757,0.046616,26010.0,26009.0,2.74561578]
[1693532626936,0.046616,26010.0,26009.0,2.74321578]
[1693532627069,0.046616,26010.0,26009.0,2.72387578]
[1693532627287,0.046616,26010.0,26009.0,2.64545578]
[1693532627288,0.13847955,26010.0,26009.0,2.64545578]
[1693532627487,0.13847955,26010.0,26009.0,2.62545578]
[1693532627691,0.27627488,26010.0,26009.0,2.62545578]
[1693532627907,0.046616,26010.0,26009.0,2.62545578]
[1693532628113,0.18441133,26010.0,26009.0,2.62545578]
[1693532628317,0.27626155,26010.0,26009.0,2.62545578]
[1693532630673,0.13846622,26010.0,26009.0,2.62545578]
[1693532636551,0.13846622,26010.0,26009.0,2.69589578]
[1693532636716,0.046616,26010.0,26009.0,2.69511578]
[1693532636916,0.046616,26010.0,26009.0,2.69499578]
[1693532637177,0.046616,26010.0,26009.0,2.69487578]
[1693532637331,0.046616,26010.0,26009.0,2.69367578]
[1693532637536,0.046616,26010.0,26009.0,2.69469578]
[1693532637775,0.046616,26010.0,26009.0,2.69451578]
[1693532637952,0.046616,26010.0,26009.0,2.69439578]
[1693532638159,0.046616,26010.0,26009.0,2.69493578]
[1693532638356,0.046616,26010.0,26009.0,2.69679578]
[1693532638519,0.046616,26010.0,26009.0,2.69577578]
[1693532638717,0.046616,26010.0,26009.0,2.69463578]
[1693532639039,0.046616,26010.0,26009.0,2.69451578]
[1693532639239,0.046616,26010.0,26009.0,2.69439578]
[1693532639476,0.046616,26010.0,26009.0,2.69421578]
[1693532639674,0.046616,26010.0,26009.0,2.69427578]
[1693532639920,0.046616,26010.0,26009.0,2.69415578]
[1693532640199,0.046616,26010.0,26009.0,2.69379578]
[1693532640342,0.046616,26010.0,26009.0,2.69277578]
[1693532640548,0.046616,26010.0,26009.0,2.69187578]
[1693532640744,0.046616,26010.0,26009.0,2.69175578]
[1693532640944,0.046616,26010.0,26009.0,2.69157578]
[1693532641198,0.046616,26010.0,26009.0,2.69169578]
[1693532641534,0.046616,26010.0,26009.0,2.69109578]
[1693532641734,0.046616,26010.0,26009.0,2.69073578]
[1693532642209,0.046616,26010.0,26009.0,2.69031578]
[1693532642414,0.046616,26010.0,26009.0,2.69067578]
[1693532642622,0.046616,26010.0,26009.0,2.69013578]
[1693532642824,0.046616,26010.0,26009.0,2.62545578]
[1693532643433,0.046616,26010.0,26009.0,2.69013578]
[1693532643655,0.046616,26010.0,26009.0,2.62545578]
[1693532645430,0.046616,26010.0,26009.0,2.69013578]
[1693532645666,0.046616,26010.0,26009.0,2.62545578]
[1693532651028,0.13842986,26010.0,26009.0,2.62545578]
[1693532670662,0.13842986,26010.0,26009.0,2.69751578]
[1693532670871,0.13842986,26010.0,26009.0,2.69811578]
[1693532671073,0.13842986,26010.0,26009.0,2.69877578]
[1693532671274,0.13842986,26010.0,26009.0,2.69889578]
[1693532671474,0.13842986,26010.0,26009.0,2.69835578]
[1693532671674,0.13842986,26010.0,26009.0,2.69439578]
[1693532671848,0.13842986,26010.0,26009.0,2.69427578]
[1693532672050,0.13842986,26010.0,26009.0,2.69415578]
[1693532672250,0.27615065,26010.0,26009.0,2.69343578]
[1693532672491,0.27615065,26010.0,26009.0,2.69379578]
[1693532672711,0.27615065,26010.0,26009.0,2.69367578]
[1693532673013,0.27615065,26010.0,26009.0,2.69421578]
[1693532673309,0.27615065,26010.0,26009.0,2.69385578]
[1693532673515,0.27615065,26010.0,26009.0,2.69373578]
[1693532673755,0.27615065,26010.0,26009.0,2.69433578]
[1693532673867,0.27615065,26010.0,26009.0,2.69415578]
[1693532674067,0.27615065,26010.0,26009.0,2.69403578]
[1693532674269,0.27615065,26010.0,26009.0,2.69445578]
[1693532674468,0.27615065,26010.0,26009.0,2.69403578]
[1693532674682,0.27615065,26010.0,26009.0,2.68939578]
[1693532674889,0.27615065,26010.0,26009.0,2.68927578]
[1693532675163,0.27615065,26010.0,26009.0,2.68915578]
[1693532675356,0.27615065,26010.0,26009.0,2.68723578]
[1693532675510,0.27615065,26010.0,26009.0,2.68663578]
[1693532675714,0.27615065,26010.0,26009.0,2.68645578]
[1693532675924,0.27615065,26010.0,26009.0,2.68585578]
[1693532676129,0.27615065,26010.0,26009.0,2.68573578]
[1693532676334,0.27615065,26010.0,26009.0,2.62045578]
[1693532676898,0.36796451,26010.0,26009.0,2.62045578]
[1693532677233,0.18433679,26010.0,26009.0,2.62045578]
[1693532678107,0.18433679,26010.0,26009.0,2.68663578]
[1693532678313,0.18433679,26010.0,26009.0,2.68651578]
[1693532678528,0.18433679,26010.0,26009.0,2.68645578]
[1693532678727,0.18433679,26010.0,26009.0,2.68633578]
[1693532678936,0.18433679,26010.0,26009.0,2.68627578]
[1693532679095,0.18433679,26010.0,26009.0,2.68615578]
[1693532679290,0.18433679,26010.0,26009.0,2.68609578]
[1693532679518,0.18433679,26010.0,26009.0,2.68591578]
[1693532679720,0.18433679,26010.0,26009.0,2.68543578]
[1693532679898,0.18433679,26010.0,26009.0,2.68537578]
[1693532680097,0.18433679,26010.0,26009.0,2.68513578]
[1693532680301,0.18433679,26010.0,26009.0,2.68525578]
[1693532680733,0.18433679,26010.0,26009.0,2.68513578]
[1693532680949,0.18433679,26010.0,26009.0,2.68573578]
[1693532681214,0.18433679,26010.0,26009.0,2.68567578]
[1693532681393,0.18433679,26010.0,26009.0,2.68555578]
[1693532681591,0.18433679,26010.0,26009.0,2.62045578]
[1693532684828,0.18433679,26010.0,26009.0,2.68549578]
[1693532684989,0.18433679,26010.0,26009.0,2.68525578]
[1693532685195,0.18433679,26010.0,26009.0,2.68519578]
[1693532685397,0.18433679,26010.0,26009.0,2.68531578]
[1693532685638,0.18433679,26010.0,26009.0,2.62045578]
[1693532688165,0.18433679,26010.0,26009.0,2.68525578]
[1693532688363,0.18433679,26010.0,26009.0,2.62045578]
[1693532700291,0.13772079,26011.0,26010.0,0.04]
[1693532700544,0.13772079,26014.0,26013.0,2.346536]
[1693532700750,0.13772079,26015.0,26014.0,0.04]
[1693532700955,0.13772079,26015.0,26014.0,2.63175749]
[1693532701182,0.32134851,26016.0,26014.0,2.47692278]
[1693532701389,0.13772079,26016.0,26015.0,0.38708678]
[1693532701595,0.13772079,26016.0,26015.0,2.31629678]
[1693532701983,0.13772079,26016.0,26015.0,2.31593678]
[1693532702187,0.29922079,26017.0,26016.0,1.847904]
[1693532702351,0.29922079,26017.0,26016.0,2.35319078]
[1693532703768,0.30022079,26017.0,26016.0,2.36719078]
[1693532704339,0.1625,26017.0,26016.0,2.36719078]
[1693532704767,0.1625,26017.0,26016.0,2.39619078]
[1693532705134,0.1625,26017.0,26016.0,2.55005678]
[1693532708384,0.1625,26017.0,26016.0,2.61779678]
[1693532708690,0.1625,26017.0,26016.0,2.61827678]
[1693532708887,0.1625,26017.0,26016.0,2.61833678]
[1693532709092,0.1625,26017.0,26016.0,2.61839678]
[1693532709292,0.1625,26017.0,26016.0,2.61851678]
[1693532709496,0.1625,26017.0,26016.0,2.61857678]
[1693532709695,0.1625,26017.0,26016.0,2.61827678]
[1693532709876,0.1625,26017.0,26016.0,2.61839678]
[1693532710085,0.1625,26017.0,26016.0,2.61845678]
[1693532710283,0.1625,26017.0,26016.0,2.61851678]